fUSD/lending_fUSD_20241223
["ID","MTS","AMOUNT","RATE_DAILY","PERIOD"]
[346386013,1734931855380,-202.95715476,0.00019726,2]
[346386014,1734931855393,-2155.86,0.00019726,2]
[346386015,1734931855407,-500.0,0.00019726,2]
[346386016,1734931855420,-500.0,0.00019726,2]
[346386017,1734931855434,-547.39164841,0.00019726,2]
[346386018,1734931855447,-1171.17,0.00019726,2]
[346386019,1734931855460,-1248.58,0.00019726,2]
[346386020,1734931855474,-1119.96,0.00019726,2]
[346386021,1734931855487,-5172.01,0.00019726,2]
[346386022,1734931855501,-17011.16,0.00019726,2]
[346386023,1734931855514,-500.0,0.00019726,2]
[346386024,1734931855528,-1096.06,0.00019726,2]
[346386025,1734931855542,-1877.8,0.00019726,2]
[346386026,1734931855556,-38342.95,0.00019726,2]
[346386027,1734931855570,-2012.46,0.00019726,2]
[346386028,1734931855584,-500.0,0.00019726,2]
[346386029,1734931855597,-1766.94,0.00019726,2]
[346386030,1734931855611,-500.0,0.00019726,2]
[346386031,1734931855624,-3051.76,0.00019726,2]
[346386032,1734931855638,-1221.94,0.00019726,2]
[346386033,1734931855653,-500.0,0.00019726,2]
[346386034,1734931855666,-686.62,0.00019726,2]
[346386035,1734931855680,-798.65,0.00019726,2]
[346386036,1734931855693,-3464.09,0.00019726,2]
[346386037,1734931855706,-500.0,0.00019726,2]
[346386038,1734931855720,-500.0,0.00019726,2]
[346386039,1734931855733,-1534.55,0.00019726,2]
[346386040,1734931855747,-500.0,0.00019726,2]
[346386041,1734931855761,-3099.81,0.00019726,2]
[346386042,1734931855778,-500.0,0.00019726,2]
[346386043,1734931855791,-500.0,0.00019726,2]
[346386044,1734931855805,-969.15,0.00019726,2]
[346386045,1734931855819,-531.76,0.00019726,2]
[346386046,1734931855832,-500.0,0.00019726,2]
[346386047,1734931855847,-1332.97,0.00019726,2]
[346386048,1734931855861,-500.0,0.00019726,2]
[346386049,1734931855870,-1657.62,0.00019726,2]
[346386050,1734931855879,-2171.88,0.00019726,2]
[346386051,1734931855888,-3536.71,0.00019726,2]
[346386052,1734931855898,-2241.66,0.00019726,2]
[346386053,1734931855907,-3557.06,0.00019726,2]
[346386054,1734931855916,-780.7,0.00019726,2]
[346386055,1734931855925,-1978.94,0.00019726,2]
[346386056,1734931855935,-1952.38,0.00019726,2]
[346386057,1734931855945,-508.24411518,0.00019726,2]
[346386058,1734931856210,-500.0,0.00019726,2]
[346386059,1734931856225,-721.01,0.00019726,2]
[346386060,1734931856235,-6166.88,0.00019726,2]
[346386061,1734931856244,-506.13907165,0.00019726,2]
[346386062,1734931856254,-767.61,0.00019726,2]
[346386063,1734931856263,-1060.92,0.00019726,2]
[346386064,1734931856274,-9256.22,0.00019726,2]
[346386065,1734931856283,-6408.71,0.00019726,2]
[346386066,1734931856292,-10933.82,0.00019726,2]
[346386067,1734931856301,-2355.46,0.00019726,2]
[346386068,1734931856311,-500.0,0.00019726,2]
[346386069,1734931856320,-740.69,0.00019726,2]
[346386070,1734931856330,-1362.02,0.00019726,2]
[346386071,1734931856339,-5076.61,0.00019726,2]
[346386072,1734931856348,-532.84001237,0.00019726,2]
[346386073,1734931856357,-1738.84,0.00019726,2]
[346386074,1734931856367,-1312.18,0.00019726,2]
[346386075,1734931856376,-513.4105581,0.00019726,2]
[346386076,1734931856386,-500.0,0.00019726,2]
[346386077,1734931856397,-2594.01,0.00019726,2]
[346386078,1734931856406,-500.0,0.00019726,2]
[346386079,1734931856415,-532.57,0.00019726,2]
[346386080,1734931856425,-653.04,0.00019726,2]
[346386081,1734931856435,-3022.93,0.00019726,2]
[346386082,1734931856444,-611.45,0.00019726,2]
[346386083,1734931856453,-500.0,0.00019726,2]
[346386084,1734931856463,-500.0,0.00019726,2]
[346386085,1734931856472,-2747.21,0.00019726,2]
[346386086,1734931856481,-2539.83,0.00019726,2]
[346386087,1734931856490,-506.21116522,0.00019726,2]
[346386088,1734931856500,-3698.03,0.00019726,2]
[346386089,1734931856510,-4680.22,0.00019726,2]
[346386090,1734931856520,-660.63,0.00019726,2]
[346386091,1734931856529,-21431.66,0.00019726,2]
[346386092,1734931856539,-500.0,0.00019726,2]
[346386093,1734931856548,-500.0,0.00019726,2]
[346386094,1734931856558,-1051.52,0.00019726,2]
[346386095,1734931856568,-667.72,0.00019726,2]
[346386096,1734931856577,-3391.2,0.00019726,2]
[346386097,1734931856587,-1291.97,0.00019726,2]
[346386098,1734931856597,-500.0,0.00019726,2]
[346386099,1734931856607,-4011.11,0.00019726,2]
[346386100,1734931856616,-500.0,0.00019726,2]
[346386101,1734931856626,-753.93,0.00019726,2]
[346386102,1734931856635,-1169.3,0.00019726,2]
[346386103,1734931856644,-2450.15,0.00019726,2]
[346386104,1734931856658,-500.0,0.00019726,2]
[346386105,1734931856668,-511.19116317,0.00019726,2]
[346386106,1734931856677,-2402.98,0.00019726,2]
[346386107,1734931856687,-9288.76,0.00019726,2]
[346386108,1734931856697,-2369.59,0.00019726,2]
[346386109,1734931856707,-500.0,0.00019726,2]
[346386110,1734931856716,-1928.76,0.00019726,2]
[346386111,1734931856727,-1354.85,0.00019726,2]
[346386112,1734931856737,-7550.08,0.00019726,2]
[346386113,1734931856747,-500.0,0.00019726,2]
[346386114,1734931856757,-507.32,0.00019726,2]
[346386115,1734931856767,-2090.29,0.00019726,2]
[346386116,1734931856777,-500.0,0.00019726,2]
[346386117,1734931856787,-913.32,0.00019726,2]
[346386118,1734931856796,-500.0,0.00019726,2]
[346386119,1734931856805,-500.0,0.00019726,2]
[346386120,1734931856816,-2331.66,0.00019726,2]
[346386121,1734931856825,-500.0,0.00019726,2]
[346386122,1734931856835,-500.0,0.00019726,2]
[346386123,1734931856844,-1054.84,0.00019726,2]
[346386124,1734931856853,-4701.04,0.00019726,2]
[346386125,1734931856863,-500.0,0.00019726,2]
[346386126,1734931856872,-500.0,0.00019726,2]
[346386127,1734931856881,-947.18,0.00019726,2]
[346386128,1734931856892,-500.0,0.00019726,2]
[346386129,1734931856901,-908.05,0.00019726,2]
[346386130,1734931856911,-556.32397331,0.00019726,2]
[346386131,1734931856921,-500.0,0.00019726,2]
[346386132,1734931856931,-500.0,0.00019726,2]
[346386133,1734931856940,-1461.8,0.00019726,2]
[346386134,1734931856950,-500.0,0.00019726,2]
[346386135,1734931856959,-500.0,0.00019726,2]
[346386136,1734931856970,-639.77,0.00019726,2]
[346386137,1734931856980,-4586.68,0.00019726,2]
[346386138,1734931856990,-500.0,0.00019726,2]
[346386139,1734931857000,-4068.61,0.00019726,2]
[346386140,1734931857010,-500.0,0.00019726,2]
[346386141,1734931857023,-1818.33,0.00019726,2]
[346386142,1734931857033,-500.0,0.00019726,2]
[346386143,1734931857043,-1267.64,0.00019726,2]
[346386144,1734931857053,-500.0,0.00019726,2]
[346386145,1734931857063,-500.0,0.00019726,2]
[346386146,1734931857073,-5139.77,0.00019726,2]
[346386147,1734931857083,-500.0,0.00019726,2]
[346386148,1734931857093,-944.63,0.00019726,2]
[346386149,1734931857103,-10782.92,0.00019726,2]
[346386150,1734931857112,-500.0,0.00019726,2]
[346386151,1734931857122,-671.86,0.00019726,2]
[346386152,1734931857132,-500.0,0.00019726,2]
[346386153,1734931857141,-500.0,0.00019726,2]
[346386154,1734931857151,-500.0,0.00019726,2]
[346386155,1734931857160,-150.0,0.00019726,2]
[346386156,1734931857170,-150.0,0.00019729,2]
[346386157,1734931857179,-259.0,0.0001973,2]
[346386158,1734931857189,-150.0,0.00019737,2]
[346386159,1734931857199,-150.0,0.0001974,2]
[346386160,1734931857209,-27515.39964646,0.00019742,2]
[346386161,1734931857218,-362.55960572,0.00019746,2]
[346386162,1734931857228,-1557.13316611,0.00019748,2]
[346386163,1734931857237,-150.0,0.00019755,2]
[346386164,1734931857247,-150.0,0.00019761,2]
[346386165,1734931857256,-150.0,0.00019761,2]
[346386166,1734931857268,-784286.32171241,0.00019765,2]
[346386167,1734931857277,-500.89531538,0.00019773,2]
[346386168,1734931857287,-159.74298944,0.00019773,2]
[346386169,1734931857297,-500.0,0.00019773,2]
[346386170,1734931857307,-150.0,0.00019774,2]
[346386171,1734931857316,-150.0,0.00019775,2]
[346386172,1734931857325,-150.0,0.00019776,2]
[346386173,1734931857334,-1557.13316611,0.00019778,2]
[346386174,1734931857344,-150.0,0.00019779,2]
[346386175,1734931857354,-150.0,0.00019779,2]
[346386176,1734931857363,-150.0,0.00019784,2]
[346386177,1734931857373,-150.0,0.00019784,2]
[346386178,1734931857382,-150.0,0.00019786,2]
[346386179,1734931857391,-150.0,0.00019786,2]
[346386180,1734931857401,-150.0,0.0001979,2]
[346386181,1734931857410,-150.0,0.0001979,2]
[346386182,1734931857420,-783501.98874306,0.00019796,2]
[346386183,1734931857429,-586.384,0.00019798,2]
[346386184,1734931857438,-255.736,0.00019798,2]
[346386185,1734931857448,-633.0,0.00019798,2]
[346386186,1734931857457,-1899.0,0.00019798,2]
[346386187,1734931857466,-3770.0,0.00019798,2]
[346386188,1734931857476,-996.637,0.00019798,2]
[346386189,1734931857485,-1256.0,0.00019798,2]
[346386190,1734931857494,-834.0,0.00019798,2]
[346386191,1734931857503,-536.0,0.00019798,2]
[346386192,1734931857512,-3682.0,0.00019798,2]
[346386193,1734931857524,-1101.0,0.00019798,2]
[346386194,1734931857533,-635.0,0.00019798,2]
[346386195,1734931857542,-1265.0,0.00019798,2]
[346386196,1734931857551,-3887.0,0.00019798,2]
[346386197,1734931857561,-150.0,0.00019798,2]
[346386198,1734931857569,-2011.0,0.00019798,2]
[346386199,1734931857578,-5646.02030097,0.000198,2]
[346386200,1734931857588,-109761.72042301,0.000198,2]
[346386201,1734931857597,-151.0,0.000198,2]
[346386202,1734931857606,-151.0,0.000198,2]
[346386203,1734931857616,-151.0,0.000198,2]
[346386204,1734931857625,-189.928288,0.000198,2]
[346386205,1734931857635,-189.928288,0.000198,2]
[346386206,1734931857644,-150.0,0.00019801,2]
[346386207,1734931857655,-150.0,0.00019804,2]
[346386208,1734931857665,-150.0,0.00019807,2]
[346386209,1734931857675,-1557.13316611,0.00019809,2]
[346386210,1734931857684,-1096.53172738,0.0001981,2]
[346386211,1734931857695,-150.0,0.00019811,2]
[346386212,1734931857704,-150.0,0.00019813,2]
[346386213,1734931857714,-150.0,0.00019818,2]
[346386214,1734931857724,-150.0,0.00019824,2]
[346386215,1734931857735,-1500.0,0.00019824,2]
[346386216,1734931857746,-251.01,0.00019828,2]
[346386217,1734931857756,-258.81,0.00019828,2]
[346386218,1734931857769,-153.0,0.00019829,2]
[346386219,1734931857779,-153.0,0.00019829,2]
[346386220,1734931857788,-153.0,0.00019829,2]
[346386221,1734931857798,-153.0,0.00019829,2]
[346386222,1734931857808,-153.0,0.00019829,2]
[346386223,1734931857817,-153.0,0.00019829,2]
[346386224,1734931857827,-153.0,0.00019829,2]
[346386225,1734931857837,-153.0,0.00019829,2]
[346386226,1734931857847,-153.0,0.00019829,2]
[346386227,1734931857856,-153.0,0.00019829,2]
[346386228,1734931857866,-153.0,0.00019829,2]
[346386229,1734931857875,-153.0,0.0001983,2]
[346386230,1734931857884,-153.0,0.0001983,2]
[346386231,1734931857894,-153.0,0.0001983,2]
[346386232,1734931857903,-153.0,0.0001983,2]
[346386233,1734931857912,-153.0,0.0001983,2]
[346386234,1734931857922,-153.0,0.0001983,2]
[346386235,1734931857931,-153.0,0.0001983,2]
[346386236,1734931857940,-153.0,0.0001983,2]
[346386237,1734931857950,-153.0,0.0001983,2]
[346386238,1734931857959,-153.0,0.0001983,2]
[346386239,1734931857970,-153.0,0.0001983,2]
[346386240,1734931857980,-500.0,0.00019839,2]
[346386241,1734931857990,-1557.13316611,0.00019839,2]
[346386242,1734931858000,-150.0,0.00019844,2]
[346386243,1734931858010,-150.0,0.00019845,2]
[346386244,1734931858021,-150.0,0.00019851,2]
[346386245,1734931858031,-150.0,0.00019852,2]
[346386246,1734931858041,-150.0,0.00019858,2]
[346386247,1734931858051,-150.0,0.0001986,2]
[346386248,1734931858060,-150.0,0.00019861,2]
[346386249,1734931858070,-735.85,0.00019862,2]
[346386250,1734931858079,-150.0,0.00019864,2]
[346386251,1734931858089,-150.0,0.00019868,2]
[346386252,1734931858098,-1557.13316611,0.0001987,2]
[346386253,1734931858108,-150.0,0.00019871,2]
[346386254,1734931858118,-150.0,0.00019872,2]
[346386255,1734931858128,-150.0,0.00019874,2]
[346386256,1734931858138,-23514.82306532,0.00019875,2]
[346386257,1734931858147,-1363.68244479,0.00019876,2]
[346386258,1734931858156,-150.0,0.00019876,2]
[346386259,1734931858165,-150.0,0.00019878,2]
[346386260,1734931858174,-150.0,0.0001988,2]
[346386261,1734931858183,-150.0,0.0001988,2]
[346386262,1734931858192,-150.0,0.0001988,2]
[346386263,1734931858202,-150.0,0.0001988,2]
[346386264,1734931858211,-362.55960572,0.0001988,2]
[346386265,1734931858220,-5800.0,0.00019883,2]
[346386266,1734931858229,-1500.0,0.00019884,2]
[346386267,1734931858239,-150.0,0.00019887,2]
[346386268,1734931858247,-800.0,0.0001989,2]
[346386269,1734931858256,-438.21,0.0001989,2]
[346386270,1734931858266,-5800.0,0.00019892,2]
[346386271,1734931858275,-150.0,0.00019893,2]
[346386272,1734931858284,-246.59644465,0.00019898,2]
[346386273,1734931858294,-150.0,0.00019898,2]
[346386274,1734931858304,-4996.15513601,0.000199,2]
[346386275,1734931858313,-29669.167392,0.000199,2]
[346386276,1734931858322,-5800.0,0.000199,2]
[346386277,1734931858331,-500.0,0.000199,2]
[346386278,1734931858340,-500.0,0.000199,2]
[346386279,1734931858349,-500.0,0.000199,2]
[346386280,1734931858359,-500.0,0.000199,2]
[346386281,1734931858368,-500.0,0.000199,2]
[346386282,1734931858377,-439.2466,0.000199,2]
[346386283,1734931858387,-1000.0,0.000199,2]
[346386284,1734931858396,-1000.0,0.000199,2]
[346386285,1734931858405,-1000.0,0.000199,2]
[346386286,1734931858414,-1000.0,0.000199,2]
[346386287,1734931858423,-1000.0,0.000199,2]
[346386288,1734931858433,-1000.0,0.000199,2]
[346386289,1734931858441,-1000.0,0.000199,2]
[346386290,1734931858450,-1000.0,0.000199,2]
[346386291,1734931858459,-1000.0,0.000199,2]
[346386292,1734931858469,-1000.0,0.000199,2]
[346386293,1734931858478,-1000.0,0.000199,2]
[346386294,1734931858487,-1000.0,0.000199,2]
[346386295,1734931858496,-1000.0,0.000199,2]
[346386296,1734931858506,-1000.0,0.000199,2]
[346386297,1734931858516,-1000.0,0.000199,2]
[346386298,1734931858526,-1000.0,0.000199,2]
[346386299,1734931858536,-1000.0,0.000199,2]
[346386300,1734931858545,-1000.0,0.000199,2]
[346386301,1734931858555,-1000.0,0.000199,2]
[346386302,1734931858564,-1000.0,0.000199,2]
[346386303,1734931858573,-1000.0,0.000199,2]
[346386304,1734931858582,-1000.0,0.000199,2]
[346386305,1734931858592,-1000.0,0.000199,2]
[346386306,1734931858602,-1000.0,0.000199,2]
[346386307,1734931858611,-1000.0,0.000199,2]
[346386308,1734931858620,-1000.0,0.000199,2]
[346386309,1734931858631,-1000.0,0.000199,2]
[346386310,1734931858640,-1000.0,0.000199,2]
[346386311,1734931858650,-1000.0,0.000199,2]
[346386312,1734931858662,-1000.0,0.000199,2]
[346386313,1734931858671,-1000.0,0.000199,2]
[346386314,1734931858681,-1000.0,0.000199,2]
[346386315,1734931858690,-1000.0,0.000199,2]
[346386316,1734931858700,-1000.0,0.000199,2]
[346386317,1734931858709,-1000.0,0.000199,2]
[346386318,1734931858718,-1000.0,0.000199,2]
[346386319,1734931858730,-1000.0,0.000199,2]
[346386320,1734931858739,-1000.0,0.000199,2]
[346386321,1734931858749,-1000.0,0.000199,2]
[346386322,1734931858758,-1000.0,0.000199,2]
[346386323,1734931858769,-1000.0,0.000199,2]
[346386324,1734931858779,-1000.0,0.000199,2]
[346386325,1734931858788,-912.9907,0.000199,2]
[346386326,1734931858797,-127729.39950225,0.000199,2]
[346386327,1734931858807,-15456.44079722,0.000199,2]
[346386328,1734931858816,-22320.94339651,0.000199,2]
[346386329,1734931858825,-184.78777226,0.000199,2]
[346386330,1734931858835,-184.78777226,0.000199,2]
[346386331,1734931858844,-184.78777226,0.000199,2]
[346386332,1734931858853,-184.78,0.000199,2]
[346386333,1734931858862,-1192.479609,0.000199,2]
[346386334,1734931858871,-1192.479609,0.000199,2]
[346386335,1734931858881,-243.76550679,0.000199,2]
[346386336,1734931858890,-1724.58961023,0.000199,2]
[346386337,1734931858900,-1557.13316611,0.000199,2]
[346386338,1734931858910,-150.0,0.00019907,2]
[346386339,1734931858919,-150.0,0.00019907,2]
[346386340,1734931858929,-1209.78002948,0.00019908,2]
[346386341,1734931858939,-1500.0,0.00019909,2]
[346386342,1734931858948,-150.0,0.00019911,2]
[346386343,1734931858958,-150.0,0.00019918,2]
[346386344,1734931858968,-150.0,0.0001992,2]
[346386345,1734931858977,-501.86337536,0.00019921,2]
[346386346,1734931858987,-150.0,0.00019923,2]
[346386347,1734931858996,-150.0,0.00019925,2]
[346386348,1734931859006,-150.0,0.00019927,2]
[346386349,1734931859015,-150.0,0.00019929,2]
[346386350,1734931859025,-1500.0,0.00019932,2]
[346386351,1734931859034,-150.0,0.00019933,2]
[346386352,1734931859044,-150.0,0.00019938,2]
[346386353,1734931859054,-1500.0,0.00019939,2]
[346386354,1734931859064,-150.0,0.00019942,2]
[346386355,1734931859074,-150.0,0.00019943,2]
[346386356,1734931859083,-150.0,0.00019951,2]
[346386357,1734931859092,-150.0,0.00019952,2]
[346386358,1734931859101,-155.9,0.00019959,2]
[346386359,1734931859111,-250.0,0.00019959,2]
[346386360,1734931859121,-201.0,0.00019959,2]
[346386361,1734931859130,-154.0,0.00019959,2]
[346386362,1734931859139,-154.0,0.00019959,2]
[346386363,1734931859148,-154.0,0.00019959,2]
[346386364,1734931859158,-154.0,0.00019959,2]
[346386365,1734931859167,-154.0,0.00019959,2]
[346386366,1734931859177,-154.0,0.00019959,2]
[346386367,1734931859186,-154.0,0.00019959,2]
[346386368,1734931859195,-154.0,0.00019959,2]
[346386369,1734931859204,-154.0,0.00019959,2]
[346386370,1734931859214,-154.0,0.00019959,2]
[346386371,1734931859223,-154.0,0.00019959,2]
[346386372,1734931859233,-154.0,0.00019959,2]
[346386373,1734931859243,-150.0,0.0001996,2]
[346386374,1734931859252,-150.0,0.0001996,2]
[346386375,1734931859262,-159689.17984,0.0001996,2]
[346386376,1734931859272,-150.0,0.00019964,2]
[346386377,1734931859283,-1500.0,0.00019965,2]
[346386378,1734931859292,-150.0,0.00019965,2]
[346386379,1734931859301,-1000.0,0.0001997,2]
[346386380,1734931859311,-1000.0,0.0001997,2]
[346386381,1734931859320,-1000.0,0.0001997,2]
[346386382,1734931859330,-1000.0,0.0001997,2]
[346386383,1734931859339,-1000.0,0.0001997,2]
[346386384,1734931859348,-1000.0,0.0001997,2]
[346386385,1734931859357,-1000.0,0.0001997,2]
[346386386,1734931859367,-1000.0,0.0001997,2]
[346386387,1734931859376,-500.0,0.0001997,2]
[346386388,1734931859528,-1000.0,0.0001997,2]
[346386389,1734931859548,-500.0,0.0001997,2]
[346386390,1734931859557,-1915.08636567,0.0001997,2]
[346386391,1734931859567,-500.0,0.0001997,2]
[346386392,1734931859580,-500.0,0.0001997,2]
[346386393,1734931859590,-701.87219522,0.0001997,2]
[346386394,1734931859599,-514.0,0.0001997,2]
[346386395,1734931859608,-500.0,0.00019973,2]
[346386396,1734931859618,-150.0,0.00019974,2]
[346386397,1734931859627,-150.0,0.0001998,2]
[346386398,1734931859637,-3512779.00181995,0.0001998,2]
[346386399,1734931859646,-151.0,0.0001998,2]
[346386400,1734931859659,-427.014721,0.0001998,2]
[346386401,1734931859669,-427.014721,0.0001998,2]
[346386402,1734931859678,-151.0,0.0001998,2]
[346386403,1734931859687,-168.251905,0.0001998,2]
[346386404,1734931859696,-168.251905,0.0001998,2]
[346386405,1734931859705,-1192.479609,0.0001998,2]
[346386406,1734931859715,-1192.479609,0.0001998,2]
[346386407,1734931859724,-151.0,0.0001998,2]
[346386408,1734931859735,-151.0,0.0001998,2]
[346386409,1734931859745,-151.0,0.0001998,2]
[346386410,1734931859755,-151.0,0.0001998,2]
[346386411,1734931859764,-189.928288,0.0001998,2]
[346386412,1734931859775,-189.928288,0.0001998,2]
[346386413,1734931859785,-151.0,0.0001998,2]
[346386414,1734931859794,-151.0,0.0001998,2]
[346386415,1734931859804,-152.88245044,0.00019981,2]
[346386416,1734931859813,-16544.39486439,0.00019991,2]
[346386417,1734931859823,-100079.42091389,0.00019991,2]
[346386418,1734931859833,-1773.9651012,0.00019995,2]
[346386419,1734931859842,-1665.7231628,0.00019995,2]
[346386420,1734931859852,-1557.4812244,0.00019995,2]
[346386421,1734931859861,-1449.239286,0.00019995,2]
[346386422,1734931859871,-1340.9973476,0.00019995,2]
[346386423,1734931859880,-1232.7554093,0.00019995,2]
[346386424,1734931859889,-2556.6955726,0.00019995,2]
[346386425,1734931859899,-2400.6938088,0.00019995,2]
[346386426,1734931859909,-2244.6920451,0.00019995,2]
[346386427,1734931859918,-2088.6902813,0.00019995,2]
[346386428,1734931859928,-1932.6885176,0.00019995,2]
[346386429,1734931859938,-1776.6867538,0.00019995,2]
[346386430,1734931859947,-622.68407391,0.00019995,2]
[346386431,1734931859956,-326969.63642765,0.00019997,2]
[346386432,1734931859965,-1344.2,0.00019999,2]
[346386433,1734931859975,-399.59820415,0.00019999,2]
[346386434,1734931859984,-300.0,0.00019999,2]
[346386435,1734931859994,-666.0,0.00019999,2]
[346386436,1734931860004,-666.0,0.00019999,2]
[346386437,1734931860014,-300.0,0.00019999,2]
[346386438,1734931860025,-113335.65809054,0.00019999,2]
[346386439,1734931860035,-151132.04742075,0.00019999,2]
[346386440,1734931860045,-735.85,0.00019999,2]
[346386441,1734931860055,-150.0,0.00019999,2]
[346386442,1734931860065,-94890.28329935,0.00019999,2]
[346386443,1734931860075,-150.0,0.0002,4]
[346386444,1734931860084,-7824811.39689744,0.0002,2]
[346386445,1734931860474,-1150.0429755,0.0002,2]
[346386446,1734931860833,-941.68,0.0002,2]
[346386447,1734931860845,-500.0,0.0002,2]
[346386448,1734931860864,-8486.18655485,0.0002,2]
[346386449,1734931860875,-10968.87784998,0.0002,2]
[346386450,1734931860895,-417.0176391,0.0002,2]
[346386451,1734931860906,-333.08755468,0.0002,2]
[346386452,1734931860917,-1457.13991605,0.0002,2]
[346386453,1734931861638,-209.0,0.0001877,2]
[346386454,1734931861647,-160.08,0.0001901,2]
[346386455,1734931861663,-48.92,0.0001901,2]
[346386456,1734931861671,-500.0,0.00019178,2]
[346386457,1734931861681,-162.46217477,0.00019178,2]
[346386458,1734931861692,-337.53782523,0.00019178,2]
[346386459,1734931861702,-500.0,0.00019178,2]
[346386460,1734931861711,-503.58300142,0.00019178,2]
[346386461,1734931861720,-504.41064484,0.00019178,2]
[346386462,1734931861730,-500.0,0.00019178,2]
[346386463,1734931861741,-209.0,0.0001926,2]
[346386464,1734931861750,-646.74,0.00019452,2]
[346386465,1734931861759,-500.0,0.00019452,2]
[346386466,1734931861769,-209.0,0.0001951,2]
[346386467,1734931861778,-500.0,0.00019726,2]
[346386468,1734931861787,-209.0,0.0001975,2]
[346386469,1734931861796,-4825.28805851,0.00019798,2]
[346386470,1734931862381,-348.22354477,0.00019078,2]
[346386471,1734931862391,-500.0,0.00019177,2]
[346386472,1734931862400,-500.0,0.00019177,2]
[346386473,1734931862409,-500.0,0.00019177,2]
[346386474,1734931862419,-500.0,0.00019177,2]
[346386475,1734931862428,-490.27107054,0.00019177,2]
[346386476,1734931862438,-500.0,0.00019177,2]
[346386477,1734931862447,-500.0,0.00019177,2]
[346386478,1734931862457,-500.0,0.00019177,2]
[346386479,1734931862466,-161.3091848,0.00019177,2]
[346386480,1734931862476,-298.93942968,0.00019177,2]
[346386481,1734931862503,-201.06057032,0.00019177,2]
[346386482,1734931862513,-500.0,0.00019177,2]
[346386483,1734931862524,-500.0,0.00019177,2]
[346386484,1734931862533,-500.0,0.00019177,2]
[346386485,1734931862543,-396.14916212,0.00019177,2]
[346386486,1734931862553,-500.0,0.00019177,2]
[346386487,1734931862563,-500.0,0.00019178,2]
[346386488,1734931862573,-500.0,0.00019178,2]
[346386489,1734931862583,-508.37697792,0.00019178,2]
[346386490,1734931862593,-500.0,0.00019178,2]
[346386491,1734931862603,-500.0,0.00019178,2]
[346386492,1734931862612,-503.35314286,0.00019178,2]
[346386493,1734931862622,-508.46654733,0.00019452,2]
[346386494,1734931862632,-500.0,0.00019452,2]
[346386495,1734931862642,-500.0,0.00019452,2]
[346386496,1734931862653,-597.16,0.00019452,2]
[346386497,1734931862664,-500.0,0.00019726,2]
[346386498,1734931862674,-4766.71194149,0.00019798,2]
[346386499,1734931862684,-153.0,0.00019829,2]
[346386500,1734931862694,-153.0,0.00019829,2]
[346386501,1734931862704,-153.0,0.00019829,2]
[346386502,1734931862714,-787698.28029295,0.0002,2]
[346386503,1734931862727,-1724.6154331,0.0002,2]
[346386504,1734931862741,-6634.35936988,0.0002,2]
[346386505,1734931926196,153.81,0.00010137,2]
[346386506,1734932063877,1883.50537994,0.0001696,2]
[346386507,1734932355234,154.8,0.00017825,30]
[346386508,1734932756927,160.34,0.00013984,2]
[346386509,1734932817461,166.66666666,0.0001696,2]
[346386513,1734932890855,808.3,0.00015495,2]
[346386515,1734932900999,157.78,0.00010137,2]
[346386524,1734932950116,-181.90096226,0.00017059,2]